[Event "Early-Titled-Tuesday-Blitz-June-18-2024"]
[Site "Chess.com"]
[Date "2024.06.18"]
[Round "10"]
[White "FARIZA2018"]
[Black "Roedor"]
[Result "0-1"]
[WhiteElo "2588"]
[BlackElo "2455"]
[TimeControl "180+1"]
[EndTime "9:58:45 PDT"]
[Termination "Roedor won by resignation"]

1. e4 {[%clk 0:03:00.9]} 1... e5 {[%clk 0:02:59.5]} 2. Nf3 {[%clk 0:03:00.9]}
2... Nc6 {[%clk 0:02:58.8]} 3. Bb5 {[%clk 0:03:01]} 3... Nf6 {[%clk 0:02:58.5]}
4. d3 {[%clk 0:03:00.4]} 4... Bc5 {[%clk 0:02:58.1]} 5. O-O {[%clk 0:03:00]}
5... Nd4 {[%clk 0:02:57.8]} 6. Nxd4 {[%clk 0:02:58.2]} 6... Bxd4 {[%clk
0:02:58.7]} 7. c3 {[%clk 0:02:57.9]} 7... Bb6 {[%clk 0:02:59]} 8. a4 {[%clk
0:02:57.3]} 8... c6 {[%clk 0:02:58.6]} 9. Bc4 {[%clk 0:02:56.3]} 9... O-O {[%clk
0:02:57.3]} 10. Bg5 {[%clk 0:02:34.9]} 10... d5 {[%clk 0:02:52.8]} 11. exd5
{[%clk 0:02:31.4]} 11... cxd5 {[%clk 0:02:53.7]} 12. Bxf6 {[%clk 0:02:30.8]}
12... gxf6 {[%clk 0:02:54.6]} 13. Bb3 {[%clk 0:02:30.8]} 13... Kh8 {[%clk
0:02:52.2]} 14. d4 {[%clk 0:02:23.7]} 14... Be6 {[%clk 0:02:48.3]} 15. Na3
{[%clk 0:02:22.8]} 15... Rg8 {[%clk 0:02:45.7]} 16. Kh1 {[%clk 0:02:22.8]} 16...
Qf8 {[%clk 0:02:40.8]} 17. Nc2 {[%clk 0:01:38.9]} 17... Qg7 {[%clk 0:02:35.7]}
18. Ne3 {[%clk 0:01:34.9]} 18... Rad8 {[%clk 0:02:33.9]} 19. a5 {[%clk
0:01:22.1]} 19... Bc7 {[%clk 0:02:31.8]} 20. g3 {[%clk 0:01:16.4]} 20... f5
{[%clk 0:02:09.3]} 21. dxe5 {[%clk 0:01:14.2]} 21... Qxe5 {[%clk 0:02:04]} 22.
Qd4 {[%clk 0:01:10]} 22... f4 {[%clk 0:01:59.9]} 23. Nc2 {[%clk 0:01:04.8]}
23... f6 {[%clk 0:01:53.6]} 24. Qxe5 {[%clk 0:00:52.3]} 24... fxe5 {[%clk
0:01:54.5]} 25. gxf4 {[%clk 0:00:52.3]} 25... exf4 {[%clk 0:01:43.2]} 26. Nd4
{[%clk 0:00:50.8]} 26... Bh3 {[%clk 0:01:43.2]} 27. Rg1 {[%clk 0:00:51]} 27...
Rxg1+ {[%clk 0:01:33.2]} 28. Rxg1 {[%clk 0:00:50.8]} 28... Bxa5 {[%clk
0:01:33.4]} 29. Rg5 {[%clk 0:00:45.8]} 29... Bb6 {[%clk 0:01:28.1]} 30. f3
{[%clk 0:00:37.1]} 30... Re8 {[%clk 0:01:19.5]} 31. Bxd5 {[%clk 0:00:31.8]}
31... h6 {[%clk 0:01:04.6]} 32. Rg1 {[%clk 0:00:25.3]} 32... Bxd4 {[%clk
0:01:01.2]} 33. cxd4 {[%clk 0:00:25.3]} 33... Re2 {[%clk 0:01:01]} 34. Bxb7
{[%clk 0:00:22.2]} 34... Rxb2 {[%clk 0:01:00.1]} 35. Be4 {[%clk 0:00:20.7]}
35... a5 {[%clk 0:00:58.1]} 36. Ra1 {[%clk 0:00:20.2]} 36... a4 {[%clk
0:00:57.9]} 37. Rxa4 {[%clk 0:00:18.6]} 37... Rd2 {[%clk 0:00:50.3]} 38. Kg1
{[%clk 0:00:18.4]} 38... Rd1+ {[%clk 0:00:44.6]} 39. Kf2 {[%clk 0:00:18.5]}
39... Rh1 {[%clk 0:00:44.4]} 40. Ra8+ {[%clk 0:00:15.4]} 40... Kg7 {[%clk
0:00:44.3]} 41. Ra7+ {[%clk 0:00:15.4]} 41... Kf6 {[%clk 0:00:44.5]} 42. Ra6+
{[%clk 0:00:15.3]} 42... Kg5 {[%clk 0:00:39.8]} 43. Rg6+ {[%clk 0:00:11.6]}
43... Kh5 {[%clk 0:00:40]} 44. d5 {[%clk 0:00:03.5]} 44... Rxh2+ {[%clk
0:00:40]} 45. Ke1 {[%clk 0:00:04]} 45... Bg2 {[%clk 0:00:16.4]} 46. Rg8 {[%clk
0:00:03.1]} 46... Bh3 {[%clk 0:00:11.7]} 47. d6 {[%clk 0:00:03.1]} 47... Rb2
{[%clk 0:00:09.5]} 48. Rg7 {[%clk 0:00:03.3]} 48... Rb6 {[%clk 0:00:07.4]} 49.
d7 {[%clk 0:00:01.7]} 49... Rd6 {[%clk 0:00:07.6]} 50. Bg6+ {[%clk 0:00:02.2]}
50... Kh4 {[%clk 0:00:07.5]} 51. Be8 {[%clk 0:00:02.6]} 51... h5 {[%clk
0:00:07.3]} 52. Rh7 {[%clk 0:00:02.2]} 52... Bxd7 {[%clk 0:00:06.9]} 53. Rxd7
{[%clk 0:00:02.2]} 53... Rxd7 {[%clk 0:00:06.7]} 54. Bxd7 {[%clk 0:00:02.8]}
54... Kg3 {[%clk 0:00:07.3]} 55. Ke2 {[%clk 0:00:03.1]} 55... Kg2 {[%clk
0:00:07.4]} 56. Bf5 {[%clk 0:00:02]} 56... h4 {[%clk 0:00:07.7]} 57. Bg4 {[%clk
0:00:01.8]} 57... h3 {[%clk 0:00:08]} 58. Bxh3+ {[%clk 0:00:01.5]} 58... Kxh3
{[%clk 0:00:08.9]} 59. Kf2 {[%clk 0:00:01.4]} 59... Kh2 {[%clk 0:00:09.3]} 60.
Kf1 {[%clk 0:00:01.6]} 60... Kg3 {[%clk 0:00:09.7]} 61. Kg1 {[%clk 0:00:02]}
61... Kxf3 {[%clk 0:00:10.1]} 62. Kf1 {[%clk 0:00:02.7]} 62... Kg3 {[%clk
0:00:10.5]} 63. Kg1 {[%clk 0:00:03.3]} 63... f3 {[%clk 0:00:11.1]} 64. Kf1
{[%clk 0:00:03.8]} 64... f2 {[%clk 0:00:11.7]} 0-1

[Event "Early-Titled-Tuesday-Blitz-June-18-2024"]
[Site "Chess.com"]
[Date "2024.06.18"]
[Round "10"]
[White "LileKoridze"]
[Black "BestestBP"]
[Result "0-1"]
[WhiteElo "2404"]
[BlackElo "2275"]
[TimeControl "180+1"]
[EndTime "9:58:48 PDT"]
[Termination "BestestBP won by resignation"]

1. d4 {[%clk 0:03:00.9]} 1... Nf6 {[%clk 0:02:59]} 2. c4 {[%clk 0:03:00.9]} 2...
d6 {[%clk 0:02:59.5]} 3. Nc3 {[%clk 0:03:00.4]} 3... Nbd7 {[%clk 0:02:59.2]} 4.
e4 {[%clk 0:03:00.5]} 4... g6 {[%clk 0:02:59.8]} 5. Nf3 {[%clk 0:03:00.5]} 5...
Bg7 {[%clk 0:03:00.3]} 6. Be2 {[%clk 0:03:00.4]} 6... O-O {[%clk 0:03:00.9]} 7.
O-O {[%clk 0:03:00.3]} 7... e5 {[%clk 0:03:01.2]} 8. d5 {[%clk 0:03:00.9]} 8...
Nc5 {[%clk 0:02:57.9]} 9. Nd2 {[%clk 0:03:00.4]} 9... a5 {[%clk 0:02:56.6]} 10.
b3 {[%clk 0:03:00.4]} 10... c6 {[%clk 0:02:51]} 11. dxc6 {[%clk 0:02:59.7]}
11... bxc6 {[%clk 0:02:51.4]} 12. Ba3 {[%clk 0:02:58.4]} 12... Ne6 {[%clk
0:02:44.4]} 13. Nf3 {[%clk 0:02:53.5]} 13... c5 {[%clk 0:02:38.7]} 14. Qd3
{[%clk 0:02:51.8]} 14... Nf4 {[%clk 0:02:38.1]} 15. Qd2 {[%clk 0:02:51.2]} 15...
Bb7 {[%clk 0:02:37.5]} 16. Rfd1 {[%clk 0:02:47]} 16... Nxe4 {[%clk 0:02:33.9]}
17. Nxe4 {[%clk 0:02:43.4]} 17... Bxe4 {[%clk 0:02:34.8]} 18. Qe3 {[%clk
0:02:38.2]} 18... Nxe2+ {[%clk 0:02:28.9]} 19. Qxe2 {[%clk 0:02:36.7]} 19...
Bxf3 {[%clk 0:02:25.3]} 20. gxf3 {[%clk 0:02:30.6]} 20... Qg5+ {[%clk
0:02:22.4]} 21. Kh1 {[%clk 0:02:29.9]} 21... Rad8 {[%clk 0:02:23]} 22. Rd5
{[%clk 0:02:28.9]} 22... Qh4 {[%clk 0:02:01.1]} 23. Rad1 {[%clk 0:02:27.7]}
23... Bh6 {[%clk 0:01:59.7]} 24. Qf1 {[%clk 0:02:26.4]} 24... Bf4 {[%clk
0:01:50.4]} 25. Qg2 {[%clk 0:02:26.5]} 25... Qe7 {[%clk 0:01:37.1]} 26. Bc1
{[%clk 0:02:21.5]} 26... Bxc1 {[%clk 0:01:24.9]} 27. Rxc1 {[%clk 0:02:21.1]}
27... f5 {[%clk 0:01:25.4]} 28. Rcd1 {[%clk 0:02:19.9]} 28... Rf6 {[%clk
0:01:13.8]} 29. Qf1 {[%clk 0:02:17.5]} 29... e4 {[%clk 0:01:03.3]} 30. fxe4
{[%clk 0:01:47.5]} 30... fxe4 {[%clk 0:01:01]} 31. Qg2 {[%clk 0:01:37.5]} 31...
Rdf8 {[%clk 0:00:54.7]} 32. R5d2 {[%clk 0:01:29.2]} 32... e3 {[%clk 0:00:46.8]}
33. fxe3 {[%clk 0:01:22.5]} 33... Qxe3 {[%clk 0:00:27.8]} 34. Qd5+ {[%clk
0:01:20.8]} 34... Kh8 {[%clk 0:00:26.8]} 35. Qg2 {[%clk 0:01:16.3]} 35... Kg7
{[%clk 0:00:05.7]} 36. Qb7+ {[%clk 0:01:13.5]} 36... R8f7 {[%clk 0:00:05.2]} 37.
Qg2 {[%clk 0:01:13.6]} 37... Rf2 {[%clk 0:00:03.9]} 38. Rxf2 {[%clk 0:01:12.3]}
38... Rxf2 {[%clk 0:00:04.8]} 39. Qb7+ {[%clk 0:01:12.6]} 39... Rf7 {[%clk
0:00:05.4]} 40. Qg2 {[%clk 0:01:12.7]} 40... Qe5 {[%clk 0:00:04]} 41. Rc1 {[%clk
0:01:12.2]} 41... Qf4 {[%clk 0:00:03.8]} 42. Rd1 {[%clk 0:01:12.2]} 42... Qe5
{[%clk 0:00:03.4]} 43. Rc1 {[%clk 0:01:12.2]} 43... h5 {[%clk 0:00:03.9]} 44.
Rg1 {[%clk 0:01:11.2]} 44... Qe6 {[%clk 0:00:03.5]} 45. h3 {[%clk 0:01:09.1]}
45... Qf6 {[%clk 0:00:03.7]} 46. Rd1 {[%clk 0:01:06.6]} 46... Re7 {[%clk
0:00:03.2]} 47. Rg1 {[%clk 0:01:06.1]} 47... Qe6 {[%clk 0:00:02.3]} 48. Rd1
{[%clk 0:01:05.5]} 48... Rf7 {[%clk 0:00:02.2]} 49. Rg1 {[%clk 0:01:05.4]} 49...
Rf6 {[%clk 0:00:02.9]} 50. Rd1 {[%clk 0:01:05.5]} 50... Qe5 {[%clk 0:00:02.5]}
51. Rg1 {[%clk 0:01:05.3]} 51... Qf5 {[%clk 0:00:03.1]} 52. Rd1 {[%clk
0:01:05.2]} 52... Kh6 {[%clk 0:00:03.2]} 53. Rg1 {[%clk 0:01:04.4]} 53... Qf3
{[%clk 0:00:03.1]} 54. Kh2 {[%clk 0:01:02.5]} 54... Qxg2+ {[%clk 0:00:03.3]} 55.
Kxg2 {[%clk 0:01:03.4]} 55... g5 {[%clk 0:00:03.4]} 56. Rd1 {[%clk 0:01:03.5]}
56... Kg6 {[%clk 0:00:04.1]} 57. Rd5 {[%clk 0:01:03.7]} 57... Re6 {[%clk
0:00:04.3]} 58. Kf3 {[%clk 0:01:03.5]} 58... Kf6 {[%clk 0:00:04.9]} 59. Rd2
{[%clk 0:01:03]} 59... Ke7 {[%clk 0:00:03.4]} 60. Rd5 {[%clk 0:01:03.2]} 60...
Rf6+ {[%clk 0:00:04]} 61. Ke4 {[%clk 0:01:02]} 61... Rf4+ {[%clk 0:00:02.2]} 62.
Ke3 {[%clk 0:01:02.5]} 62... Rf6 {[%clk 0:00:01.3]} 63. Rxg5 {[%clk 0:01:02.1]}
63... Rh6 {[%clk 0:00:02]} 64. Kf4 {[%clk 0:01:02.1]} 64... Ke6 {[%clk
0:00:02.1]} 65. Rd5 {[%clk 0:01:01.6]} 65... Rf6+ {[%clk 0:00:01.9]} 66. Kg5
{[%clk 0:01:02.1]} 66... Rf2 {[%clk 0:00:02]} 67. Kxh5 {[%clk 0:01:00.6]} 67...
Rxa2 {[%clk 0:00:02.7]} 68. Rd3 {[%clk 0:01:00.9]} 68... Ra3 {[%clk 0:00:02]}
69. Re3+ {[%clk 0:01:00.5]} 69... Kd7 {[%clk 0:00:02]} 70. Rg3 {[%clk
0:00:57.3]} 70... Kc6 {[%clk 0:00:01.6]} 71. Kg4 {[%clk 0:00:56.5]} 71... a4
{[%clk 0:00:02.1]} 72. bxa4 {[%clk 0:00:56.4]} 72... Rxa4 {[%clk 0:00:03]} 73.
Rc3 {[%clk 0:00:56.5]} 73... d5 {[%clk 0:00:02.9]} 74. h4 {[%clk 0:00:56.9]}
74... dxc4 {[%clk 0:00:02.8]} 75. h5 {[%clk 0:00:57.1]} 75... Kb5 {[%clk
0:00:03.1]} 76. h6 {[%clk 0:00:57.5]} 76... Kb4 {[%clk 0:00:03.8]} 77. Rh3
{[%clk 0:00:55.7]} 77... Ra8 {[%clk 0:00:04.4]} 78. Kf5 {[%clk 0:00:53.2]} 78...
Rh8 {[%clk 0:00:04.6]} 79. Ke4 {[%clk 0:00:53.3]} 79... c3 {[%clk 0:00:04.3]}
80. Kd3 {[%clk 0:00:51.9]} 80... Kb3 {[%clk 0:00:04.7]} 81. Ke2 {[%clk
0:00:51.1]} 81... c4 {[%clk 0:00:05]} 82. Kd1 {[%clk 0:00:51.5]} 82... Kb2
{[%clk 0:00:05.3]} 83. Rh2+ {[%clk 0:00:51.2]} 83... Kb1 {[%clk 0:00:04]} 84. h7
{[%clk 0:00:47.5]} 84... Rd8+ {[%clk 0:00:04.4]} 85. Ke1 {[%clk 0:00:47.8]}
85... c2 {[%clk 0:00:04.8]} 86. h8=Q {[%clk 0:00:44.7]} 86... Rxh8 {[%clk
0:00:05.2]} 87. Rxh8 {[%clk 0:00:42.6]} 87... c1=Q+ {[%clk 0:00:05.6]} 0-1

[Event "Early-Titled-Tuesday-Blitz-June-18-2024"]
[Site "Chess.com"]
[Date "2024.06.18"]
[Round "10"]
[White "aot317"]
[Black "mostafa_sakha"]
[Result "1-0"]
[WhiteElo "2533"]
[BlackElo "2394"]
[TimeControl "180+1"]
[EndTime "9:58:50 PDT"]
[Termination "aot317 won on time"]

1. e4 {[%clk 0:03:00.9]} 1... e5 {[%clk 0:02:59.9]} 2. Nf3 {[%clk 0:03:00.8]}
2... Nc6 {[%clk 0:03:00.1]} 3. Bc4 {[%clk 0:03:01.1]} 3... Nf6 {[%clk
0:02:59.9]} 4. Ng5 {[%clk 0:03:01.6]} 4... d5 {[%clk 0:02:59.6]} 5. exd5 {[%clk
0:03:02.5]} 5... Na5 {[%clk 0:03:00.1]} 6. Bb5+ {[%clk 0:03:03.1]} 6... c6
{[%clk 0:03:00.7]} 7. dxc6 {[%clk 0:03:04]} 7... bxc6 {[%clk 0:03:01.6]} 8. Bd3
{[%clk 0:03:04.6]} 8... Nd5 {[%clk 0:03:00.9]} 9. Nf3 {[%clk 0:03:05.2]} 9...
Bd6 {[%clk 0:03:00.7]} 10. O-O {[%clk 0:03:05.6]} 10... Nf4 {[%clk 0:03:01.1]}
11. Re1 {[%clk 0:03:05.7]} 11... Nxd3 {[%clk 0:03:01.5]} 12. cxd3 {[%clk
0:03:06.6]} 12... O-O {[%clk 0:03:02]} 13. Nxe5 {[%clk 0:03:06.9]} 13... c5
{[%clk 0:02:58.3]} 14. Nc3 {[%clk 0:03:00.5]} 14... Bb7 {[%clk 0:02:39.3]} 15.
Nf3 {[%clk 0:02:18.4]} 15... Nc6 {[%clk 0:02:14]} 16. Ne4 {[%clk 0:02:05.2]}
16... Nd4 {[%clk 0:01:58.5]} 17. Nxd4 {[%clk 0:02:01]} 17... cxd4 {[%clk
0:01:47]} 18. b3 {[%clk 0:01:57.3]} 18... Be7 {[%clk 0:01:42.2]} 19. Bb2 {[%clk
0:01:56]} 19... f5 {[%clk 0:01:37.5]} 20. Ng3 {[%clk 0:01:56.1]} 20... Qd5
{[%clk 0:01:33.8]} 21. f3 {[%clk 0:01:33.7]} 21... Bh4 {[%clk 0:01:33.1]} 22.
Re2 {[%clk 0:01:22.8]} 22... g5 {[%clk 0:01:28.6]} 23. Rc1 {[%clk 0:01:20.5]}
23... g4 {[%clk 0:01:27.9]} 24. fxg4 {[%clk 0:01:09.2]} 24... fxg4 {[%clk
0:01:04.3]} 25. Re4 {[%clk 0:01:03.7]} 25... h5 {[%clk 0:00:51]} 26. Qe2 {[%clk
0:00:57.5]} 26... Bf6 {[%clk 0:00:45.3]} 27. Rc4 {[%clk 0:00:50.1]} 27... Rad8
{[%clk 0:00:43.9]} 28. Bxd4 {[%clk 0:00:29.6]} 28... Bxd4+ {[%clk 0:00:36.2]}
29. Rexd4 {[%clk 0:00:30]} 29... Qf7 {[%clk 0:00:27.3]} 30. Rxd8 {[%clk
0:00:21.2]} 30... Rxd8 {[%clk 0:00:26.7]} 31. Ne4 {[%clk 0:00:16.3]} 31... Ba6
{[%clk 0:00:20.5]} 32. Rc5 {[%clk 0:00:13.1]} 32... Bxd3 {[%clk 0:00:19.1]} 33.
Rg5+ {[%clk 0:00:13.5]} 33... Kf8 {[%clk 0:00:18.1]} 34. Qe1 {[%clk 0:00:10.9]}
34... Re8 {[%clk 0:00:17.4]} 35. Qf2 {[%clk 0:00:04.5]} 35... Qxf2+ {[%clk
0:00:15.7]} 36. Kxf2 {[%clk 0:00:03.6]} 36... Rxe4 {[%clk 0:00:15.7]} 37. Rf5+
{[%clk 0:00:02.5]} 37... Ke7 {[%clk 0:00:15.1]} 38. Rxh5 {[%clk 0:00:02.3]}
38... Re2+ {[%clk 0:00:15.1]} 39. Kg3 {[%clk 0:00:03]} 39... Rxd2 {[%clk
0:00:15.3]} 40. Ra5 {[%clk 0:00:03.4]} 40... a6 {[%clk 0:00:14.6]} 41. Rd5
{[%clk 0:00:01.6]} 41... Ke6 {[%clk 0:00:10.8]} 42. Rd8 {[%clk 0:00:02.2]} 42...
Kf5 {[%clk 0:00:10.4]} 43. a4 {[%clk 0:00:01.5]} 43... Ke4 {[%clk 0:00:07.8]}
44. Re8+ {[%clk 0:00:01.3]} 44... Kd4 {[%clk 0:00:07.9]} 45. Rd8+ {[%clk
0:00:02]} 45... Kc3 {[%clk 0:00:07.9]} 46. b4 {[%clk 0:00:02.6]} 46... Kxb4
{[%clk 0:00:07.6]} 47. h4 {[%clk 0:00:02]} 47... gxh3 {[%clk 0:00:07.3]} 48.
gxh3 {[%clk 0:00:02.9]} 48... Kxa4 {[%clk 0:00:07.6]} 49. h4 {[%clk 0:00:03.5]}
49... Kb3 {[%clk 0:00:06.9]} 50. h5 {[%clk 0:00:04]} 50... Kc3 {[%clk
0:00:06.7]} 51. h6 {[%clk 0:00:04.6]} 51... Rd1 {[%clk 0:00:04.2]} 52. h7 {[%clk
0:00:03.1]} 52... Rg1+ {[%clk 0:00:04.4]} 53. Kf2 {[%clk 0:00:03.6]} 53... Rf1+
{[%clk 0:00:04.4]} 54. Kg2 {[%clk 0:00:02]} 54... Bxh7 {[%clk 0:00:04.4]} 55.
Kxf1 {[%clk 0:00:01.9]} 55... Bd3+ {[%clk 0:00:02.7]} 56. Ke1 {[%clk 0:00:02.5]}
56... Bb5 {[%clk 0:00:02.7]} 57. Kd1 {[%clk 0:00:02.8]} 57... Kc4 {[%clk
0:00:02.9]} 58. Kc2 {[%clk 0:00:03]} 58... Kb4 {[%clk 0:00:03]} 59. Kb2 {[%clk
0:00:03.6]} 59... Kc4 {[%clk 0:00:03.3]} 60. Rc8+ {[%clk 0:00:03.7]} 60... Kb4
{[%clk 0:00:03.7]} 61. Rh8 {[%clk 0:00:04.6]} 61... Kc4 {[%clk 0:00:03.8]} 62.
Rh4+ {[%clk 0:00:05.2]} 62... Kd3 {[%clk 0:00:03.9]} 63. Kb3 {[%clk 0:00:05.5]}
63... Ke3 {[%clk 0:00:03.7]} 64. Kc3 {[%clk 0:00:05.8]} 64... Ke2 {[%clk
0:00:01.9]} 65. Rh7 {[%clk 0:00:06.2]} 1-0

[Event "Early-Titled-Tuesday-Blitz-June-18-2024"]
[Site "Chess.com"]
[Date "2024.06.18"]
[Round "10"]
[White "David_ATM"]
[Black "elizabethcastaneda"]
[Result "1-0"]
[WhiteElo "2423"]
[BlackElo "2196"]
[TimeControl "180+1"]
[EndTime "9:58:52 PDT"]
[Termination "David_ATM won on time"]

1. e4 {[%clk 0:03:00.9]} 1... c5 {[%clk 0:02:59.8]} 2. c3 {[%clk 0:03:00.2]}
2... d5 {[%clk 0:02:57.4]} 3. exd5 {[%clk 0:03:01.1]} 3... Qxd5 {[%clk
0:02:57.6]} 4. d4 {[%clk 0:03:01.9]} 4... cxd4 {[%clk 0:02:54.7]} 5. Nf3 {[%clk
0:03:02.8]} 5... Nc6 {[%clk 0:02:53.7]} 6. cxd4 {[%clk 0:03:02.7]} 6... e5
{[%clk 0:02:53.8]} 7. Nc3 {[%clk 0:02:51.5]} 7... Bb4 {[%clk 0:02:53.5]} 8. dxe5
{[%clk 0:02:50.7]} 8... Qxd1+ {[%clk 0:02:51.9]} 9. Kxd1 {[%clk 0:02:51.6]} 9...
Bg4 {[%clk 0:02:51.7]} 10. Bf4 {[%clk 0:02:36.7]} 10... O-O-O+ {[%clk
0:02:50.5]} 11. Kc2 {[%clk 0:02:33.3]} 11... Bxf3 {[%clk 0:02:48.5]} 12. gxf3
{[%clk 0:02:33.3]} 12... Nd4+ {[%clk 0:02:48.7]} 13. Kc1 {[%clk 0:02:17.2]}
13... Ne7 {[%clk 0:02:39.9]} 14. Bh3+ {[%clk 0:02:13.9]} 14... Kb8 {[%clk
0:02:35.7]} 15. Be3 {[%clk 0:01:25.8]} 15... Nxf3 {[%clk 0:02:29.2]} 16. Kc2
{[%clk 0:01:19.7]} 16... Ng6 {[%clk 0:02:08.6]} 17. Rad1 {[%clk 0:01:00.2]}
17... Ngxe5 {[%clk 0:02:07]} 18. Bg2 {[%clk 0:00:51.1]} 18... f6 {[%clk
0:01:32.8]} 19. a3 {[%clk 0:00:43.4]} 19... Bxc3 {[%clk 0:01:22.8]} 20. bxc3
{[%clk 0:00:44.3]} 20... b6 {[%clk 0:01:15.7]} 21. Bf4 {[%clk 0:00:44.2]} 21...
Kc8 {[%clk 0:01:09.7]} 22. Bh3+ {[%clk 0:00:31.2]} 22... Kb7 {[%clk 0:01:09.3]}
23. Bg2 {[%clk 0:00:31.6]} 23... Kc8 {[%clk 0:01:08.7]} 24. Bh3+ {[%clk
0:00:31.7]} 24... Kb7 {[%clk 0:01:06.4]} 25. a4 {[%clk 0:00:28.2]} 25... Kc7
{[%clk 0:00:53.9]} 26. Bg2 {[%clk 0:00:27.5]} 26... Kc8 {[%clk 0:00:53.8]} 27.
a5 {[%clk 0:00:27.5]} 27... Rxd1 {[%clk 0:00:51.3]} 28. Rxd1 {[%clk 0:00:27]}
28... Rd8 {[%clk 0:00:51.6]} 29. Rb1 {[%clk 0:00:15.1]} 29... bxa5 {[%clk
0:00:35.1]} 30. Rb5 {[%clk 0:00:15.3]} 30... g5 {[%clk 0:00:34.6]} 31. Bg3
{[%clk 0:00:12.4]} 31... Rd2+ {[%clk 0:00:31.5]} 32. Kc1 {[%clk 0:00:11.7]}
32... Ra2 {[%clk 0:00:30.7]} 33. Kb1 {[%clk 0:00:05.8]} 33... Ra3 {[%clk
0:00:21.2]} 34. Rc5+ {[%clk 0:00:06.4]} 34... Kd7 {[%clk 0:00:20.1]} 35. Rb5
{[%clk 0:00:06.9]} 35... Rxc3 {[%clk 0:00:19.8]} 36. Rxa5 {[%clk 0:00:07.2]}
36... Rc7 {[%clk 0:00:18.4]} 37. Bxf3 {[%clk 0:00:06.2]} 37... Nxf3 {[%clk
0:00:15.7]} 38. Bxc7 {[%clk 0:00:06.4]} 38... Kxc7 {[%clk 0:00:16.6]} 39. Rxa7+
{[%clk 0:00:06.5]} 39... Kd6 {[%clk 0:00:15.5]} 40. Rxh7 {[%clk 0:00:07.4]}
40... Ke5 {[%clk 0:00:15.7]} 41. Kc1 {[%clk 0:00:07.4]} 41... Kf5 {[%clk
0:00:14.9]} 42. Kd1 {[%clk 0:00:07.6]} 42... Kg4 {[%clk 0:00:15.3]} 43. Ke2
{[%clk 0:00:06.1]} 43... f5 {[%clk 0:00:14.4]} 44. h3+ {[%clk 0:00:04.6]} 44...
Kf4 {[%clk 0:00:14.6]} 45. Ra7 {[%clk 0:00:04]} 45... Ng1+ {[%clk 0:00:15]} 46.
Kf1 {[%clk 0:00:03.9]} 46... Nxh3 {[%clk 0:00:15.7]} 47. Ra4+ {[%clk 0:00:03.6]}
47... Ke5 {[%clk 0:00:15.2]} 48. Ra5+ {[%clk 0:00:03.7]} 48... Kf4 {[%clk
0:00:15.2]} 49. Kg2 {[%clk 0:00:03.8]} 49... g4 {[%clk 0:00:15.5]} 50. Ra4+
{[%clk 0:00:03.7]} 50... Kg5 {[%clk 0:00:15.2]} 51. Kg3 {[%clk 0:00:02.1]} 51...
f4+ {[%clk 0:00:14.1]} 52. Kg2 {[%clk 0:00:02.5]} 52... Kh4 {[%clk 0:00:12.1]}
53. Ra8 {[%clk 0:00:02.4]} 53... f3+ {[%clk 0:00:10.6]} 54. Kh2 {[%clk
0:00:02.4]} 54... Nf4 {[%clk 0:00:10.6]} 55. Rh8+ {[%clk 0:00:02.2]} 55... Kg5
{[%clk 0:00:10.7]} 56. Kg1 {[%clk 0:00:01.6]} 56... Ne2+ {[%clk 0:00:10.6]} 57.
Kf1 {[%clk 0:00:02]} 57... Nf4 {[%clk 0:00:10.5]} 58. Rf8 {[%clk 0:00:02.3]}
58... Ne2 {[%clk 0:00:08.4]} 59. Ra8 {[%clk 0:00:02.3]} 59... Nf4 {[%clk
0:00:08.4]} 60. Ra5+ {[%clk 0:00:02.8]} 60... Kh4 {[%clk 0:00:07.2]} 61. Ra4
{[%clk 0:00:03.4]} 61... Ne2 {[%clk 0:00:07.1]} 62. Re4 {[%clk 0:00:03.3]} 62...
Kh3 {[%clk 0:00:06.9]} 63. Re8 {[%clk 0:00:03]} 63... g3 {[%clk 0:00:02.5]} 64.
Rh8+ {[%clk 0:00:03.1]} 64... Kg4 {[%clk 0:00:02.6]} 65. Rg8+ {[%clk 0:00:03.8]}
65... Kf4 {[%clk 0:00:01.4]} 66. fxg3+ {[%clk 0:00:02.4]} 66... Nxg3+ {[%clk
0:00:01.6]} 67. Kf2 {[%clk 0:00:03]} 67... Ne4+ {[%clk 0:00:01.8]} 68. Ke1
{[%clk 0:00:03.6]} 1-0